Cogmind - Beta 13 @@@ ROGUE MODE // 2024.07.14 @ 22:03:36 Player: Exterminator Result: Core destroyed Performance ------------- Evolutions (2) 1000 Regions Visited (3) 600 Robots Destroyed (24) 120 Value Destroyed (536) 536 Prototype IDs (0) 0 Alien Tech Used (0) 0 Bonus (8) 8 TOTAL SCORE: 2264 Bonus ------- High Alert Combat Kills 8 Cogmind --------- Core Integrity 0/550 Matter 116/300 Energy 100/100 System Corruption 8% Temperature Cool (9) Movement Core (50) Location -8/Materials Parts ------- > --- POWER (1) -------- (None) > --- PROPULSION (3) --- (None) > --- UTILITY (5) ------ (None) > --- WEAPON (2) ------- (None) > --- INVENTORY (5) ---- Terrain Scan Processor Reaction Control System Light Assault Rifle Mini Grenade Launcher Mini Grenade Launcher Peak State ------------ > --- POWER ------------ Improved Ion Engine > --- PROPULSION ------- Wheel Compact Wheel > --- UTILITY ---------- Small Storage Unit Seismic Detector Targeting Computer Medium Armor Plating > --- WEAPON ----------- Mini Grenade Launcher Mini Grenade Launcher > --- INVENTORY -------- Improved Ion Engine Light Treads Light Assault Rifle Mini Grenade Launcher Mini Grenade Launcher [Rating: 13] Favorites ----------- Power Improved Ion Engine Engine Improved Ion Engine Propulsion Light Treads Treads Light Treads Wheel Compact Wheel Utility Small Storage Unit Device Seismic Detector Storage Small Storage Unit Processor Targeting Computer Protection Medium Armor Plating Weapon Mini Grenade Launcher Ballistic Gun Assault Rifle Launcher Mini Grenade Launcher Build | -11 -10 -9 -8 ------- Run | Yrd Mat Mat Mat Slots Evolved 4 | . . 2 2 Power . | . . . . Propulsion 1 | . . . 1 Utility 3 | . . 2 1 Weapon . | . . . . Parts Attached 17 | 6 4 5 2 Power 2 | 1 1 . . Engine 2 | 1 1 . . Core . | . . . . Reactor . | . . . . Propulsion 5 | 2 . 2 1 Treads 3 | 2 . . 1 Leg . | . . . . Wheel 2 | . . 2 . Hover . | . . . . Flight . | . . . . Utility 5 | 1 1 2 1 Device 2 | . . 1 1 Storage 1 | 1 . . . Processor 1 | . 1 . . Hackware . | . . . . Protection 1 | . . 1 . Artifact . | . . . . Weapon 5 | 2 2 1 . Energy Gun . | . . . . Energy Cannon . | . . . . Ballistic Gun 2 | 2 . . . Ballistic Cannon . | . . . . Launcher 3 | . 2 1 . Special Weapon . | . . . . Impact Weapon . | . . . . Slashing Weapon . | . . . . Piercing Weapon . | . . . . Special Melee Weapon . | . . . . Unidentified Prototypes . | . . . . Parts Lost 10 | . . 4 6 Power 1 | . . . 1 Propulsion 4 | . . 2 2 Utility 5 | . . 2 3 Weapon . | . . . . Highest Loss Streak 3 | . . 2 3 To Critical Strikes . | . . . . Average Slot Usage (%) 82 | . 98 82 48 Engine 11 | . 14 11 4 Treads 15 | . 28 4 2 Wheel 5 | . . 15 5 Device 5 | . . 8 11 Storage 12 | . 14 11 9 Processor 8 | . 12 5 . Protection 1 | . . 3 . Ballistic Gun 11 | . 23 . . Launcher 11 | . 3 22 14 Naked Turns 1 | . . . 1 Heaviest Build 22 | 11 15 22 17 Greatest Support 40 | 40 40 40 20 Greatest Overweight (x) 2 | . . . 2 Average Overweight (x) . | . . . . Largest Inventory Capacity 8 | 8 8 8 8 Average Capacity 7 | 6 8 8 7 Most Carried 8 | 4 7 6 8 Average Carried 5 | 2 4 5 7 Final Capacity 8 | 8 8 8 5 Final Carried 6 | 4 6 5 5 Class Distribution -------------------- 100% | Mutant Dominant Class ---------------- Mutant | -10/Materials Mutant | -9/Materials Mutant | -8/Materials Resources | -11 -10 -9 -8 ----------- Run | Yrd Mat Mat Mat Matter Collected 492 | 106 310 36 40 Remotely . | . . . . Salvage Created 492 | . 359 133 . Parts 37 | . 22 15 . Haulers Intercepted . | . . . . Recyclers Shooed . | . . . . Parts Field Recycled . | . . . . Retrieved Matter . | . . . . Parts Self-Destructed . | . . . . Prevented . | . . . . Kills | -11 -10 -9 -8 ------- Run | Yrd Mat Mat Mat Combat Hostiles Destroyed 17 | . 9 8 . Guns 6 | . 6 . . AOE 11 | . 3 8 . Classes Destroyed 8 | . 4 4 . Worker 2 | . 1 1 . Builder 2 | . . 2 . Recycler 1 | . 1 . . Operator 1 | . . 1 . Watcher 1 | . . 1 . Swarmer 7 | . 3 4 . Grunt 7 | . 6 1 . Sentry 3 | . . 3 . Best Kill Streak 7 | . 3 7 . Combat Bots Only 5 | . 3 5 . Max Kills in Single Turn 4 | . 3 4 . Gunslinging . | . . . . Exploded 3 | . 3 3 . Melee . | . . . . Uniques/NPCs Destroyed . | . . . . Combat | -11 -10 -9 -8 -------- Run | Yrd Mat Mat Mat Hostile Shots Fired 186 | . 50 50 86 Missed 65 | . 12 26 27 Damage Taken 1729 | . 402 350 977 Core 684 | . 54 65 565 Absorbed by Shields . | . . . . Core Remaining (%) 87 | 100 78 83 . Volleys Fired 44 | . 32 12 . Largest 2 | . 2 2 . Hottest 60 | . 60 60 . Shots Fired 88 | . 64 24 . Gun 60 | . 60 . . Cannon . | . . . . Launcher 28 | . 4 24 . Special . | . . . . Kinetic 60 | . 60 . . Thermal . | . . . . Explosive 28 | . 4 24 . Electromagnetic . | . . . . Robot Hit Streak 19 | . 10 19 . Robot Miss Streak 4 | . 4 3 . Penetration Max . | . . . . Secondary Targets 1 | . 1 . . Max Gunslinging Chain 1 | . 1 . . Shots Hit Robots 52 | . 42 10 . Core Hits 50 | . 18 24 8 Critical Kills . | . . . . Critical Parts Destroyed . | . . . . Critical Strikes . | . . . . Melee Attacks . | . . . . Impact . | . . . . Slashing . | . . . . Piercing . | . . . . Sneak Attacks . | . . . . Combat Hostiles . | . . . . Follow-up Attacks . | . . . . Damage Inflicted 1523 | . 713 774 36 Guns 405 | . 405 . . Cannons . | . . . . Explosions 1080 | . 308 772 . Melee . | . . . . Ramming 38 | . . 2 36 Kinetic 405 | . 405 . . Thermal . | . . . . Explosive 1080 | . 308 772 . Electromagnetic . | . . . . Impact . | . . . . Slashing . | . . . . Piercing . | . . . . Highest Corruption 8 | . . 1 8 Average Corruption 1 | . . 1 3 Corruption Purged . | . . . . Corruption Blocked . | . . . . Effects 1 | . . 1 . Matter Fused 1 | . . 1 . Overload Shots . | . . . . Overflow Damage 26 | . 18 8 . Projectiles . | . . . . Explosions 26 | . 18 8 . Melee . | . . . . Knockbacks . | . . . . Impact . | . . . . Kinetic . | . . . . Secondary . | . . . . Self-Inflicted Damage 78 | . . 62 16 Shots 2 | . . 2 . Rammed 18 | . . 1 17 Targets Rammed 18 | . . 1 17 Kicked . | . . . . Crushed . | . . . . Highest Temperature 15 | . 15 15 5 Average Temperature 5 | . 5 5 5 Received Heat Transfer 816 | . 171 96 549 Siege Activations . | . . . . Robots Corrupted . | . . . . Combat Hostiles . | . . . . Parts Fried . | . . . . Impact Corruptions . | . . . . Robots Melted . | . . . . Combat Hostiles . | . . . . Parts Melted . | . . . . Heat Transferred . | . . . . Parts Sabotaged . | . . . . Parts Stolen . | . . . . Parts Stripped . | . . . . Power Chain Reactions . | . . . . Alert | -11 -10 -9 -8 ------- Run | Yrd Mat Mat Mat Peak Influence 536 | . 295 536 236 Initial 221 | . . 124 221 Average 174 | . 91 345 220 Maximum Alert Level 2 | . 1 2 1 Low Security (%) 58 | 100 94 16 11 Level 1 31 | . 5 48 88 Level 2 9 | . . 35 . Level 3 . | . . . . Level 4 . | . . . . Level 5 . | . . . . High Security . | . . . . Max Security . | . . . . Squads Dispatched 6 | . 2 2 2 Investigation 3 | . 2 . 1 Extermination . | . . . . Reinforcement 3 | . . 2 1 Assault . | . . . . Garrison . | . . . . Intercept . | . . . . Searches Triggered . | . . . . Construction Impeded . | . . . . Haulers Reinforced . | . . . . Active Scanning Responses . | . . . . Cargo Convoy Interrupts . | . . . . Stealth | -11 -10 -9 -8 --------- Run | Yrd Mat Mat Mat Distress Signals 2 | . . 2 . Communications Jammed . | . . . . Distress Signals . | . . . . Times Spotted 34 | . 10 17 7 Peak Tracking Total 7 | . 3 7 6 Tactical Retreats . | . . . . Traps | -11 -10 -9 -8 ------- Run | Yrd Mat Mat Mat Traps Triggered 1 | . 1 . . Indirectly . | . . . . Trap Hack Attempts . | . . . . Triggered . | . . . . Disarmed . | . . . . Reprogrammed . | . . . . Reused . | . . . . Traps Extracted . | . . . . Installed . | . . . . Triggered . | . . . . Machines | -11 -10 -9 -8 ---------- Run | Yrd Mat Mat Mat Machines Disabled 3 | . . 3 . Max in Single Turn 2 | . . 2 . Machines Repaired . | . . . . Machines Dismantled . | . . . . Machines Sabotaged . | . . . . Overloaded Fab Kills . | . . . . Hacking | -11 -10 -9 -8 --------- Run | Yrd Mat Mat Mat Machines Accessed 4 | . 2 1 1 Terminals 3 | . 2 . 1 Fabricators . | . . . . Repair Stations . | . . . . Recycling Units 1 | . . 1 . Scanalyzers . | . . . . Garrison Access . | . . . . Total Hacks 18 | . 12 3 3 Successful 14 | . 9 2 3 Failed 4 | . 3 1 . Catastrophic . | . . . . Database Lockouts . | . . . . Manual . | . . . . Terminals 15 | . 12 . 3 Fabricators . | . . . . Repair Stations . | . . . . Recycling Units 3 | . . 3 . Scanalyzers . | . . . . Garrison Access . | . . . . Terminal Hacks 12 | . 9 . 3 Record 7 | . 4 . 3 Scanalyzer Index 1 | . 1 . . Dispatch Records 1 | . 1 . . Maintenance Status 1 | . 1 . . Hauler Manifests 1 | . 1 . . Zone Layout 1 | . 1 . . Fabricator Hacks . | . . . . Repair Station Hacks . | . . . . Recycling Unit Hacks 2 | . . 2 . Retrieve Matter 2 | . . 2 . Scanalyzer . | . . . . Garrison Access Hacks . | . . . . Unauthorized Hacks . | . . . . Terminals . | . . . . Fabricators . | . . . . Repair Stations . | . . . . Recycling Units . | . . . . Scanalyzers . | . . . . Garrison Access . | . . . . Data Cores Recovered 1 | . . 1 . Used . | . . . . Hacking Detections 4 | . 2 1 1 Full Trace Events 3 | . 1 1 1 Feedback Events . | . . . . Feedback Blocked . | . . . . Robot Schematics Acquired . | . . . . Robots Built . | . . . . Authchips . | . . . . Time . | . . . . Total Robot Build Rating . | . . . . Part Schematics Acquired . | . . . . Parts Built . | . . . . Authchips . | . . . . Time . | . . . . Total Part Build Rating . | . . . . Parts Repaired . | . . . . Time . | . . . . Parts Recycled . | . . . . Recycled Matter . | . . . . Retrieved Matter . | . . . . Retrieved Components . | . . . . Parts Scanalyzed . | . . . . Part Schematics Acquired . | . . . . Parts Damaged . | . . . . Bothacking | -11 -10 -9 -8 ------------ Run | Yrd Mat Mat Mat Used RIF Installer . | . . . . Robots Hacked . | . . . . Non-combat . | . . . . Combat . | . . . . Robot Hacks Applied . | . . . . Relay Couplers Released . | . . . . Fabnet Peak Effective % . | . . . . Robots Rewired . | . . . . Allies Hacked . | . . . . Hacks Repelled . | . . . . Allies | -11 -10 -9 -8 -------- Run | Yrd Mat Mat Mat Total Allies . | . . . . Largest Group . | . . . . Highest-Rated Group . | . . . . Highest-Rated Ally . | . . . . Total Orders . | . . . . Ally Attacks . | . . . . Total Damage . | . . . . Kills . | . . . . Allies Corrupted . | . . . . Allies Melted . | . . . . Intel | -11 -10 -9 -8 ------- Run | Yrd Mat Mat Mat Robot Analysis Total . | . . . . Derelict Logs Recovered . | . . . . Drone Launches . | . . . . Drone Recoveries . | . . . . Exploration | -11 -10 -9 -8 ------------- Run | Yrd Mat Mat Mat Turns Passed 871 | 81 395 231 164 Spaces Moved 491 | 46 172 178 95 Core 8 | 4 . . 4 Treads 261 | 42 172 26 21 Legs . | . . . . Wheels 222 | . . 152 70 Hover . | . . . . Flight . | . . . . Fastest Speed 50 | 50 160 90 100 Average Speed 129 | 150 160 100 117 Slowest Speed 160 | 160 160 160 160 Overloaded Moves . | . . . . Propulsion Burnouts . | . . . . Robots Hopped . | . . . . Cave-ins Triggered . | . . . . Exploration Rate (%) 18 | 5 29 26 15 Regions Visited 3 Branch Regions . Pre-discovered Areas . | . . . . Known Exits Taken . | . . . . Unknown Exits Taken 3 | 1 1 1 . Scrap Searched . | . . . . Spaces Dug . | . . . . Terrain Destroyed 198 | . 32 166 . Melee . | . . . . Projectile . | . . . . AOE 198 | . 32 166 . Terrain Rammed . | . . . . Walls Destroyed . | . . . . Machines Disabled . | . . . . Actions | -11 -10 -9 -8 --------- Run | Yrd Mat Mat Mat Total 638 | 55 234 204 145 Wait 53 | . 18 8 27 Move 488 | 45 171 177 95 Hop . | . . . . Pick Up 11 | 4 4 . 3 Fast Attach 12 | 6 3 2 1 Attach 2 | . . 1 1 Detach 1 | . . . 1 Swap 3 | . 1 2 . Drop 7 | . 5 1 1 Fire 44 | . 32 12 . Melee . | . . . . Ram 15 | . . 1 14 Kick . | . . . . Crush 2 | . . . 2 Escape Stasis . | . . . . Rewire . | . . . . Trap . | . . . . Miscellaneous . | . . . . Route ------- -11/Scrapyard -10/Materials -9/Materials -8/Materials History --------- Turn | Location | Event 7 | -11/Scrapyard | Discovered new exit (range 15) 82 | -11/Scrapyard | Entered Materials 302 | -10/Materials | Build established: Mutant 367 | -10/Materials | Discovered new exit (range 11) 477 | -10/Materials | Entered another Materials area 477 | -9/Materials | Evolved 2 slots: Utility x2 699 | -9/Materials | Discovered new exit (range 7) 708 | -9/Materials | Entered another Materials area 708 | -8/Materials | Evolved 2 slots: Propulsion x1, Utility x1 844 | -8/Materials | Lost 3 parts (1p1n1u) 861 | -8/Materials | Core integrity fell below 50% 870 | -8/Materials | Core integrity fell below 20% 872 | -8/Materials | Core destroyed Last Messages --------------- 00854_ Slammed into G-47 Trooper. 00854_ Destabilizing: System corrupted (+2). 00856_ Slammed into G-47 Trooper. 00856_ Trap Scanner destroyed. 00856_ Critical hit (Burn: +37). 00857_ Slammed into G-47 Trooper. 00857_ G-47 Trooper destroyed. 00860_ G-47 Trooper suffers critical hit (Burn). 00861_ Slammed into G-47 Trooper. 00861_ Destabilizing: System corrupted (+1). 00862_ Slammed into G-47 Trooper. 00863_ Destabilizing: System corrupted (+2). 00864_ Slammed into G-47 Trooper. 00870_ Destabilizing: Core damaged (-27). 00871_ Acquired 40 matter. 00871_ Slammed into G-47 Trooper. 00871_ Sml. Storage Unit destroyed. 00871_ System corrupted by crushing effect (+3). 00872_ Slammed into G-47 Trooper. 00872_ Destabilizing: Core damaged (-22). Map ----- +----------------------------------------------------+ | ?????????????????????????????????????????????????? | | ?????????????????????????????????????????????????? | | ?????????????????????????????????????????????????? | | ?????????????????????????????????????????????????? | | ?????????????????????????????????????????????????? | | ?????????????????????????????????????????????????? | | ?????????????????????????????????????????????????? | | ?????????????????????????????????????????????????? | | ?????????????????????????????????????????????????? | | ????????????????????????????????????????????? #??? | | ????????????????????????????????????????????? #??? | | ????????????????????????????????????????????? #### | | ????????????????????????????????????????????? # | | ????????????????????????????????????????????? # | | ????????????????????????????????????????????? # | | ????????????????????????????????????????##### # | | ???????????????????##########???????????# #? | | ???????????????????# #???????????# #?! | | ???????????????????# #???????????# #?? | | ???????????????????# #???????????# #?? | | ???????????????????# ]#???????????# #?## | | ???????????????????# * =#???????????## #### | | ???????????????????# #????????????#^ | | ???????????????????# ! g #?######?????# | | ???????????????????# g* ###!!!!##????#^ | | ???????????????????# g@g ##! !#????# ^ | | ???????????????????######g#### #????# ^ " | | ??????????????????????# [ ## ###### T | | ??????????????????????# " | | ??????????????????????# | | ??????????????????????# | | ??????????????????????# #################+#### | | ???????????????????######+######??????????? # | | ???????????????????# #????????? # " | | ???????????????????#! """ """ #????????# # " | | ???????????????????# """ """ #????????# "" # " | | ???????????????????#"" """ """ #????????# S"" # " | | ???????????????????#"T """ """ #????????# "" # " | | ???????????????????#"" #????????########? | | ???????????????????? ? ???????????????????? | | ?????????????????????????######??????????????????? | | | | | | | | | | | | | | | | | | | +----------------------------------------------------+ Best States ------------- Heat Dissipation 31 Energy Generation 12 Energy Capacity 265 Matter Stores 300 Matter Capacity 300 Sight Range 16 Terrain Scan Density 10 Armor Coverage 225 Evasion (%) 42 Targeting Accuracy 5 Recoil Reduction 2 Item Schematics ----------------- None Robot Schematics ------------------ None Fabricated ------------ Nothing Alien Tech Used ----------------- None Achievements -------------- None Challenges ------------ None Game ------ Seed SpectralBombardmentStreamer Manual? 0 Play Time 00:13:19 Cumulative 6.8 hours Start 2024.07.14 @ 21:52:39 End 2024.07.14 @ 22:03:36 Sessions 1 Manual Loads 0 Difficulty Rogue Special Mode None Game No. 8 Rogue 8 Adventurer 0 Explorer 0 Win Type - Total 0 Types 0/0/0/0/0/0/0/0/0 Lore% 12 Gallery% 16 Achievement% 17 Wizard Run 0 Options --------- Layout 1 ASCII 0 Keyboard 0 Movement Mouse Keybinds 0 Fullscreen 2 Font 24/Smallcaps Map View 50x35 Zoom Use 0% Tactical HUD 1 Map Filters NONE Filters NONE Steam X RUN: 3e520dec-a3ef-40f9-bcfd-1222abd291bf